bitfinex/quotes_BTCUSD_20220207
["timestamp","ask_amount","ask_price","bid_price","bid_amount"]
[1644268172868,0.00649249,44229.0,44221.0,0.6]
[1644268173063,0.0453,44228.0,44224.0,0.24474805]
[1644268173264,0.05653551,44226.0,44224.0,0.24474805]
[1644268173464,0.0453,44225.0,44224.0,0.24474805]
[1644268174510,0.0453,44225.0,44222.0,0.00071496]
[1644268174909,0.10183681,44225.0,44222.0,0.00071496]
[1644268175312,0.10183681,44225.0,44220.0,0.02112034]
[1644268175515,0.10183681,44225.0,44221.0,0.00071497]
[1644268176511,0.10183681,44225.0,44219.0,0.05]
[1644268176714,0.10183681,44225.0,44221.0,0.00071497]
[1644268177711,0.10183681,44225.0,44219.0,0.2475354]
[1644268177914,0.056544,44224.0,44221.0,0.00071497]
[1644268178177,0.16964018,44224.0,44221.0,0.00071497]
[1644268178369,0.05,44223.0,44221.0,0.00071497]
[1644268178867,0.05654342,44221.0,44219.0,0.05]
[1644268179067,0.05654342,44221.0,44220.0,0.00071499]
[1644268179967,0.05654342,44221.0,44216.0,0.05]
[1644268180168,0.05654342,44221.0,44218.0,0.000715]
[1644268181269,0.05654342,44221.0,44216.0,0.05]
[1644268181468,0.05654342,44221.0,44217.0,0.00071502]
[1644268182520,0.05654342,44221.0,44216.0,0.05]
[1644268182721,0.05654342,44221.0,44217.0,0.00071502]
[1644268183430,0.19496512,44218.0,44217.0,0.00071502]
[1644268183624,0.19496512,44218.0,44210.0,0.1]
[1644268183625,0.24496512,44218.0,44210.0,0.1]
[1644268183821,0.24496512,44218.0,44217.0,0.00071502]
[1644268184222,0.05,44218.0,44217.0,0.00071502]
[1644268184622,0.056553,44218.0,44217.0,0.00071502]
[1644268184822,0.056553,44218.0,44215.0,0.05]
[1644268185023,0.056553,44218.0,44215.0,0.05071504]
[1644268185222,0.32589406,44218.0,44215.0,0.00071504]
[1644268186164,0.32589406,44218.0,44214.0,0.00071505]
[1644268186763,0.14146408,44216.0,44214.0,0.00071505]
[1644268187162,0.19146408,44216.0,44210.0,0.1]
[1644268187362,0.19146408,44216.0,44213.0,0.00071507]
[1644268187765,0.056557,44215.0,44213.0,0.00071507]
[1644268188361,0.056557,44215.0,44210.0,0.1]
[1644268188562,0.57680308,44211.0,44210.0,0.1]
[1644268188766,0.62680308,44211.0,44210.0,0.1]
[1644268189614,0.39536414,44211.0,44210.0,0.1]
[1644268191717,0.34536414,44211.0,44210.0,0.1]
[1644268192218,0.23333203,44214.0,44210.0,0.1]
[1644268192618,0.28333203,44214.0,44210.0,0.1]
[1644268193267,0.48237047,44216.0,44210.0,0.1]
[1644268193268,0.05655774,44212.0,44210.0,0.1]
[1644268193466,0.05655774,44212.0,44210.0,0.1007151]
[1644268194367,0.05656,44212.0,44210.0,0.1]
[1644268195574,0.0453,44211.0,44210.0,0.1]
[1644268197117,0.113146,44209.0,44208.0,0.00071542]
[1644268197319,0.21501841,44209.0,44208.0,0.00071542]
[1644268197516,0.26501841,44209.0,44208.0,0.00071542]
[1644268197717,0.50501842,44209.0,44208.0,0.00071542]
[1644268197915,0.9210108,44209.0,44208.0,0.00071542]
[1644268198116,0.30285917,44206.0,44202.0,0.00019569]
[1644268198316,0.056581,44204.0,44201.0,0.02100157]
[1644268198517,0.29684485,44202.0,44201.0,0.02100157]
[1644268198717,0.44214485,44202.0,44201.0,0.02100157]
[1644268198918,0.54169204,44202.0,44201.0,0.02100157]
[1644268199121,0.7808708,44202.0,44201.0,0.02100157]
[1644268199520,0.8940338,44202.0,44201.0,0.02100157]
[1644268199922,0.9506148,44202.0,44200.0,0.00019569]
[1644268200120,0.11316128,44201.0,44199.0,0.00071553]
[1644268200319,0.0453,44200.0,44199.0,0.00071553]
[1644268200519,0.0453,44200.0,44193.0,0.00019569]
[1644268200766,0.37782812,44199.0,44198.0,0.00071555]
[1644268200965,0.47312812,44199.0,44198.0,0.00071555]
[1644268201162,0.62312812,44199.0,44198.0,0.00071555]
[1644268201564,0.62312812,44199.0,44193.0,0.00019569]
[1644268201768,0.20188032,44199.0,44192.0,0.01944001]
[1644268201964,0.05,44197.0,44193.0,0.05019569]
[1644268202169,0.05,44204.0,44196.0,0.05]
[1644268202366,0.05,44204.0,44201.0,0.05]
[1644268203065,0.05,44204.0,44202.0,0.05]
[1644268203265,0.05,44204.0,44200.0,0.24260946]
[1644268203465,0.05,44204.0,44202.0,0.05]
[1644268205024,0.02101136,44212.0,44203.0,0.2712953]
[1644268205224,0.02101136,44212.0,44211.0,0.05]
[1644268205621,0.02101136,44212.0,44211.0,0.371915]
[1644268205921,0.05,44220.0,44217.0,0.23024404]
[1644268206119,0.05,44220.0,44219.0,0.05]
[1644268206719,0.05,44220.0,44217.0,0.00071475]
[1644268206920,0.05,44220.0,44219.0,0.05]
[1644268207521,0.02098447,44221.0,44219.0,0.05]
[1644268208019,0.55158208,44227.0,44219.0,0.05]
[1644268208265,0.55158208,44227.0,44223.0,0.05]
[1644268208465,0.55158208,44227.0,44224.0,0.05]
[1644268209064,0.55158208,44227.0,44223.0,0.00071468]
[1644268209967,0.06654844,44225.0,44214.0,0.01844283]
[1644268210164,0.06654844,44225.0,44223.0,0.00071468]
[1644268210165,0.056547,44224.0,44223.0,0.00071468]
[1644268210364,0.106547,44224.0,44223.0,0.00071468]
[1644268211167,0.10627476,44224.0,44214.0,0.06844283]
[1644268211366,0.29773184,44220.0,44214.0,0.06844283]
[1644268211565,0.29773184,44220.0,44215.0,0.05]
[1644268211765,0.34773184,44220.0,44214.0,0.03956425]
[1644268212016,0.34773184,44220.0,44214.0,0.02112142]
[1644268212616,0.34773184,44220.0,44215.0,0.00071478]
[1644268212816,0.60598626,44220.0,44215.0,0.00071478]
[1644268213217,0.65598626,44220.0,44215.0,0.00071478]
[1644268213617,0.65598626,44220.0,44214.0,0.02112142]
[1644268213816,0.60598626,44220.0,44215.0,0.00071477]
[1644268214922,0.34773184,44220.0,44214.0,0.02112142]
[1644268215119,0.34773184,44220.0,44215.0,0.00071477]
[1644268215968,0.05,44220.0,44216.0,0.05]
[1644268217166,0.04987153,44220.0,44216.0,0.05]
[1644268217365,0.04987153,44220.0,44216.0,0.05071477]
[1644268217570,0.04987153,44220.0,44218.0,0.05]
[1644268219913,0.04987153,44220.0,44217.0,0.00071475]
[1644268220512,0.04987153,44220.0,44217.0,0.05071475]
[1644268220911,0.04987153,44220.0,44217.0,0.05]
[1644268221312,0.04987153,44220.0,44216.0,0.00071476]
[1644268221713,0.04987153,44220.0,44219.0,0.05]
[1644268221914,0.03857153,44220.0,44219.0,0.05]
[1644268222717,0.03857153,44220.0,44217.0,0.00071475]
[1644268222916,0.03857153,44220.0,44219.0,0.05]
[1644268223167,0.02136577,44228.0,44217.0,0.00071475]
[1644268223365,0.38209365,44225.0,44213.0,0.19349547]
[1644268223562,0.38209365,44225.0,44217.0,0.00071475]
[1644268223563,0.43209365,44225.0,44217.0,0.00071475]
[1644268223763,0.23566948,44223.0,44217.0,0.00071475]
[1644268224464,0.23566948,44223.0,44213.0,0.19349547]
[1644268224663,0.23566948,44223.0,44218.0,0.00071474]
[1644268225066,0.23566948,44223.0,44221.0,0.05]
[1644268225369,0.056547,44222.0,44218.0,0.00071474]
[1644268225564,0.23566948,44223.0,44213.0,0.19349547]
[1644268225764,0.23566948,44223.0,44218.0,0.00068969]
[1644268226916,0.28566948,44223.0,44217.0,0.05]
[1644268227115,0.28566948,44223.0,44218.0,0.00068968]
[1644268227920,0.28566948,44223.0,44218.0,0.06688868]
[1644268228116,0.23566948,44223.0,44218.0,0.066199]
[1644268228317,0.28566948,44223.0,44218.0,0.06688868]
[1644268228717,0.23566948,44223.0,44218.0,0.06688868]
[1644268228919,0.05,44226.0,44218.0,0.06688868]
[1644268229120,0.05,44226.0,44218.0,0.06123513]
[1644268229318,0.05,44226.0,44221.0,0.05]
[1644268229518,0.05,44226.0,44220.0,0.00066666]
[1644268229718,0.05,44226.0,44224.0,0.05]
[1644268229918,0.05,44226.0,44221.0,0.05]
[1644268230118,0.05,44226.0,44221.0,0.04]
[1644268230531,0.01946959,44227.0,44225.0,0.04]
[1644268230772,0.01946959,44227.0,44226.0,0.27369151]
[1644268230969,0.01946959,44227.0,44225.0,0.04]
[1644268231470,0.01946959,44227.0,44225.0,0.29875653]
[1644268232069,0.23217473,44231.0,44225.0,0.29875653]
[1644268232270,0.02038691,44236.0,44230.0,0.04]
[1644268232671,0.02038691,44236.0,44234.0,0.04]
[1644268233272,0.20854724,44235.0,44234.0,0.04]
[1644268234070,0.20824377,44235.0,44234.0,0.04]
[1644268234518,0.20824377,44235.0,44232.0,0.00066808]
[1644268235320,0.01,44237.0,44231.0,0.04]
[1644268235518,0.01,44237.0,44234.0,0.04]
[1644268236319,0.05,44238.0,44236.0,0.04]
[1644268237121,0.01835234,44241.0,44236.0,0.04]
[1644268237321,0.01835234,44241.0,44240.0,0.04]
[1644268238204,0.001,44243.0,44240.0,0.04]
[1644268239398,0.001,44243.0,44242.0,0.321915]
[1644268239599,0.001,44243.0,44242.0,0.61445294]
[1644268239797,0.001,44247.0,44244.0,0.321915]
[1644268239998,0.001,44247.0,44246.0,0.361915]
[1644268240197,0.001,44247.0,44246.0,0.712864]
[1644268243214,0.09503902,44251.0,44247.0,1.406493]
[1644268243414,0.09503902,44251.0,44250.0,0.039843]
[1644268243619,0.09503902,44251.0,44250.0,0.64505692]
[1644268246469,0.09503902,44251.0,44250.0,0.75803092]
[1644268246869,0.0006642,44253.0,44251.0,1.35]
[1644268247070,0.0006642,44253.0,44252.0,0.59977807]
[1644268247268,0.003,44256.0,44252.0,0.59977807]
[1644268247467,0.003,44256.0,44253.0,0.31357562]
[1644268247667,0.0006642,44255.0,44253.0,0.31357562]
[1644268248070,0.0006642,44255.0,44253.0,0.039843]
[1644268248570,0.003,44256.0,44253.0,0.039843]
[1644268248772,0.0036642,44256.0,44253.0,0.039843]
[1644268249616,0.001,44261.0,44253.0,0.039843]
[1644268249817,0.00029163,44258.0,44253.0,0.039843]
[1644268250117,0.0006642,44256.0,44253.0,0.039843]
[1644268250317,0.0006642,44256.0,44250.0,0.039843]
[1644268250521,0.0006642,44256.0,44246.0,0.1]
[1644268250522,0.0102212,44256.0,44246.0,0.1]
[1644268250722,0.0102212,44256.0,44245.0,0.02142822]
[1644268250922,0.22456243,44250.0,44245.0,0.02142822]
[1644268253172,0.21495861,44250.0,44245.0,0.02142822]
[1644268253367,0.21495861,44250.0,44245.0,0.01093535]
[1644268253570,0.21495861,44250.0,44245.0,0.26309803]
[1644268254169,0.056506,44257.0,44245.0,0.26309803]
[1644268254370,0.13841959,44257.0,44245.0,0.26309803]
[1644268254769,0.13841959,44257.0,44249.0,0.00071548]
[1644268254770,0.18841959,44257.0,44249.0,0.00071548]
[1644268255171,0.25024224,44254.0,44249.0,0.00071548]
[1644268255569,0.30024224,44254.0,44249.0,0.00071548]
[1644268255770,0.30024224,44254.0,44245.0,0.25481722]
[1644268255970,0.30024224,44254.0,44249.0,0.00067839]
[1644268256173,0.00648919,44251.0,44249.0,0.00067839]
[1644268257020,0.00648919,44251.0,44245.0,0.01093535]
[1644268257216,0.00648919,44251.0,44248.0,0.00067841]
[1644268257415,0.06300319,44251.0,44248.0,0.00067841]
[1644268257816,0.11300319,44251.0,44248.0,0.00067841]
[1644268258017,0.16300319,44251.0,44248.0,0.00067841]
[1644268258217,0.16300319,44251.0,44239.0,0.06891465]
[1644268258421,0.05651303,44250.0,44247.0,0.00067841]
[1644268259124,0.22605503,44250.0,44247.0,0.00067841]
[1644268259319,0.22605503,44250.0,44239.0,0.06891465]
[1644268259320,0.05,44249.0,44239.0,0.06891465]
[1644268259521,0.056511,44248.0,44246.0,0.00067842]
[1644268259719,0.106511,44248.0,44246.0,0.00067842]
[1644268260220,0.31252123,44248.0,44246.0,0.00067842]
[1644268260422,0.26520169,44247.0,44246.0,0.00067842]
[1644268260671,0.26520169,44247.0,44238.0,0.20890455]
[1644268260867,0.26520169,44247.0,44245.0,0.00069172]
[1644268261771,0.26520169,44247.0,44240.0,0.05]
[1644268261972,0.106511,44248.0,44244.0,0.00069173]
[1644268262771,0.056511,44248.0,44244.0,0.00069173]
[1644268262972,0.2271574,44246.0,44241.0,0.05]
[1644268263172,0.2271574,44246.0,44244.0,0.00069173]
[1644268264171,0.2271574,44246.0,44241.0,0.05]
[1644268264427,0.2271574,44246.0,44243.0,0.00068159]
[1644268265323,0.2271574,44246.0,44240.0,0.01904324]
[1644268265522,0.2271574,44246.0,44242.0,0.0006816]
[1644268265722,0.2271574,44246.0,44240.0,0.00855393]
[1644268266724,0.2271574,44246.0,44244.0,0.00855393]
[1644268266928,0.02017904,44250.0,44241.0,0.00855393]
[1644268267723,0.02017904,44250.0,44246.0,0.00855393]
[1644268267924,0.00016685,44248.0,44241.0,0.00855393]
[1644268268569,0.25754598,44250.0,44242.0,0.7]
[1644268268769,0.25754598,44250.0,44241.0,0.00855393]
[1644268269373,4.598e-05,44250.0,44241.0,0.00855393]
[1644268269576,0.00648919,44251.0,44245.0,0.04995402]
[1644268270173,0.02538871,44251.0,44242.0,0.04995402]
[1644268270574,0.00218516,44249.0,44242.0,0.04995402]
[1644268274526,0.00218516,44249.0,44248.0,0.04995402]
[1644268275327,0.00268695,44249.0,44248.0,0.04995402]
[1644268275769,0.00243073,44249.0,44248.0,0.04995402]
[1644268276571,0.00243073,44249.0,44242.0,0.46128476]
[1644268277772,0.00243073,44249.0,44242.0,0.19349656]
[1644268278372,0.00243073,44249.0,44243.0,0.19349656]
[1644268278571,0.00243073,44249.0,44245.0,0.04995402]
[1644268278775,0.00243073,44249.0,44248.0,0.04995402]
[1644268279517,0.00249122,44249.0,44248.0,0.04995402]
[1644268279718,0.00249122,44249.0,44245.0,0.19349656]
[1644268280719,0.00379574,44249.0,44245.0,0.19349656]
[1644268281519,0.00379574,44249.0,44247.0,0.19349656]
[1644268283185,0.23148685,44255.0,44247.0,0.19349656]
[1644268283381,0.23148685,44255.0,44248.0,0.19349656]
[1644268283382,0.056505,44255.0,44248.0,0.19349656]
[1644268284881,0.00019854,44254.0,44248.0,0.19349656]
[1644268285083,0.056505,44253.0,44248.0,0.19349656]
[1644268285286,0.00019854,44254.0,44248.0,0.19349656]
[1644268285884,0.26082048,44256.0,44248.0,0.19349656]
[1644268286084,0.00058822,44253.0,44248.0,0.19349656]
[1644268286584,0.00058822,44253.0,44247.0,0.19349656]
[1644268287022,0.113016,44254.0,44247.0,0.19349656]
[1644268287323,0.05709622,44252.0,44247.0,0.19349656]
[1644268287925,0.2240655,44249.0,44247.0,0.19349656]
[1644268288928,0.2805735,44249.0,44247.0,0.19349656]
[1644268289323,0.2805735,44249.0,44245.0,0.19349656]
[1644268290433,0.33708361,44249.0,44244.0,0.24414387]
[1644268290675,0.33708361,44249.0,44244.0,0.24345058]
[1644268290872,0.2805735,44249.0,44245.0,0.19349656]
[1644268291271,0.2805735,44249.0,44246.0,0.19349656]
[1644268291672,0.2805735,44249.0,44247.0,0.19349656]
[1644268291874,0.33708606,44249.0,44246.0,0.19349656]
[1644268292072,0.33708606,44249.0,44244.0,0.19401336]
[1644268292474,0.33708606,44249.0,44246.0,0.19349656]
[1644268292674,0.33708606,44249.0,44245.0,0.19349656]
[1644268292875,0.33708606,44249.0,44246.0,0.19349656]
[1644268293676,0.33708606,44249.0,44247.0,0.19349656]
[1644268293875,0.2805735,44249.0,44247.0,0.19349656]
[1644268296720,0.27936196,44249.0,44247.0,0.19349656]
[1644268296921,0.056508,44249.0,44247.0,0.19349656]
[1644268298173,0.056508,44249.0,44248.0,0.19349656]
[1644268300268,0.189572,44252.0,44248.0,0.19349656]
[1644268300569,0.24673512,44252.0,44248.0,0.19349656]
[1644268301167,0.24673512,44252.0,44249.0,0.19349656]
[1644268301366,0.246076,44252.0,44249.0,0.19349656]
[1644268301569,0.30258378,44252.0,44249.0,0.19349656]
[1644268302222,0.30258378,44252.0,44248.0,0.19349656]
[1644268302821,0.30324292,44252.0,44248.0,0.19349656]
[1644268303825,0.30258378,44252.0,44248.0,0.19349656]
[1644268304224,0.30324292,44252.0,44248.0,0.19349656]
[1644268304424,0.05716314,44252.0,44248.0,0.19349656]
[1644268305125,0.056504,44252.0,44248.0,0.19349656]
[1644268305325,0.05716314,44252.0,44248.0,0.19349656]
[1644268305525,0.22663851,44251.0,44248.0,0.19349656]
[1644268305969,0.28285732,44253.0,44252.0,1.71619835]
[1644268306176,0.226023,44255.0,44252.0,1.71619835]
[1644268306368,0.169517,44255.0,44252.0,1.71619835]
[1644268306769,0.056505,44253.0,44252.0,1.71619835]
[1644268307770,0.24885906,44253.0,44252.0,1.71619835]
[1644268307970,0.24885906,44253.0,44252.0,1.91122737]
[1644268308170,0.106505,44253.0,44252.0,1.91122737]
[1644268308469,0.056505,44253.0,44252.0,1.71619835]
[1644268312427,0.056505,44253.0,44252.0,1.76615237]
[1644268312629,0.05,44258.0,44252.0,1.76615237]
[1644268312830,0.01848486,44262.0,44256.0,0.321915]
[1644268313030,0.01848486,44262.0,44255.0,0.19349656]
[1644268313276,0.001,44264.0,44256.0,0.95]
[1644268313475,0.001,44264.0,44257.0,0.23972941]
[1644268313675,0.001,44264.0,44261.0,0.01848486]
[1644268317818,0.056492,44263.0,44261.0,0.01848486]
[1644268318418,0.001,44264.0,44260.0,0.01971606]
[1644268318619,0.0015333,44264.0,44260.0,0.01971606]
[1644268319419,0.001,44264.0,44260.0,0.01971606]
[1644268319820,0.0015333,44264.0,44260.0,0.01971606]
[1644268320222,0.0015333,44264.0,44260.0,0.04034566]
[1644268320421,0.0015333,44264.0,44260.0,0.0206296]
[1644268320680,0.001,44264.0,44260.0,0.0206296]
[1644268320872,0.00155122,44264.0,44260.0,0.0206296]
[1644268321974,0.001,44264.0,44260.0,0.0206296]
[1644268322173,0.00155122,44264.0,44260.0,0.04096372]
[1644268322572,0.00155122,44264.0,44260.0,0.02033412]
[1644268323171,0.001,44264.0,44260.0,0.02033412]
[1644268323370,0.00155122,44264.0,44260.0,0.02033412]
[1644268323775,0.00155122,44264.0,44261.0,0.04995402]
[1644268323973,0.00155122,44264.0,44260.0,0.07028814]
[1644268324172,0.00155122,44264.0,44260.0,0.0395079]
[1644268324422,0.001,44264.0,44263.0,0.04995402]
[1644268324618,0.00154861,44264.0,44263.0,0.04995402]
[1644268325020,0.00154861,44264.0,44260.0,0.01926278]
[1644268325221,0.00154861,44264.0,44263.0,0.04995402]
[1644268325520,0.001,44264.0,44263.0,0.04995402]
[1644268325720,0.001,44264.0,44260.0,0.01926278]
[1644268325920,0.00154861,44264.0,44260.0,0.01926278]
[1644268326320,0.00154861,44264.0,44260.0,0.03848642]
[1644268326520,0.00154861,44264.0,44260.0,0.01922364]
[1644268326724,0.001,44264.0,44260.0,0.01922364]
[1644268326927,0.00154861,44264.0,44260.0,0.01922364]
[1644268327321,0.00054861,44264.0,44260.0,0.01922364]
[1644268327922,0.004,44265.0,44260.0,0.01922364]
[1644268328176,0.00054899,44264.0,44260.0,0.03994671]
[1644268328371,0.00054899,44264.0,44260.0,0.02072307]
[1644268329073,0.004,44265.0,44260.0,0.02072307]
[1644268329273,0.00054899,44264.0,44260.0,0.02072307]
[1644268330275,0.00354899,44265.0,44260.0,0.03968985]
[1644268330475,0.00054899,44264.0,44260.0,0.01896678]
[1644268331575,0.00354899,44265.0,44260.0,0.01896678]
[1644268332422,0.00354899,44265.0,44260.0,0.03745076]
[1644268332621,0.00354899,44265.0,44260.0,0.01848398]
[1644268334223,0.00354899,44265.0,44260.0,0.03968341]
[1644268334423,0.00354899,44265.0,44260.0,0.02119943]
[1644268336380,0.00354899,44265.0,44260.0,0.04295507]
[1644268336582,0.00354899,44265.0,44260.0,0.02175564]
[1644268337385,0.00354899,44265.0,44260.0,2.08279625]
[1644268337583,0.00354899,44265.0,44260.0,0.02175564]
[1644268338384,0.00354899,44265.0,44260.0,0.04303801]
[1644268338586,0.00354899,44265.0,44260.0,0.02128237]
[1644268340427,0.0453,44264.0,44260.0,0.02048931]
[1644268341724,0.056506,44262.0,44260.0,0.02048931]
[1644268341924,0.0453,44261.0,44260.0,0.02048931]
[1644268342525,0.20934294,44255.0,44254.0,0.00071419]
[1644268342725,0.26584881,44255.0,44254.0,0.00071419]
[1644268342924,0.5517264,44255.0,44254.0,0.00071419]
[1644268343185,1.35,44254.0,44252.0,1.02919751]
[1644268343385,0.83283226,44254.0,44252.0,0.06278265]
[1644268343581,1.1,44253.0,44250.0,0.225]
[1644268343783,0.0453,44252.0,44250.0,0.225]
[1644268343981,0.056522,44251.0,44250.0,0.225]
[1644268344181,0.49890697,44251.0,44250.0,0.1475]
[1644268344382,0.69890697,44251.0,44250.0,0.1475]
[1644268345286,0.34757174,44240.0,44237.0,0.3]
[1644268345481,0.40409858,44240.0,44234.0,0.19324461]
[1644268346180,0.0453,44239.0,44234.0,0.19324461]
[1644268346682,0.0453,44239.0,44231.0,0.24155576]
[1644268346683,0.0453,44239.0,44233.0,0.19324461]
[1644268346922,0.056523,44238.0,44233.0,0.19324461]
[1644268347325,0.056523,44238.0,44234.0,0.0007144]
[1644268348024,0.056523,44238.0,44235.0,0.04995402]
[1644268348425,0.056523,44238.0,44232.0,0.19324461]
[1644268348626,0.056523,44238.0,44234.0,0.0007144]
[1644268349024,0.046523,44238.0,44234.0,0.0007144]
[1644268349626,0.046523,44238.0,44231.0,0.40138792]
[1644268349826,0.046523,44238.0,44234.0,0.0007144]
[1644268350771,0.046523,44238.0,44230.0,0.19324461]
[1644268351071,0.046523,44238.0,44234.0,0.0007144]
[1644268352071,0.05653064,44237.0,44231.0,0.24689501]
[1644268352271,0.113063,44236.0,44234.0,0.0007144]
[1644268353172,0.113063,44236.0,44228.0,0.19324461]
[1644268353376,0.05653242,44235.0,44233.0,0.00071442]
[1644268353881,0.0453,44234.0,44233.0,0.00071442]
[1644268354078,0.59211176,44234.0,44233.0,0.00071442]
[1644268354286,0.65579992,44234.0,44233.0,0.00071442]
[1644268354535,0.22328357,44226.0,44224.0,0.01947188]
[1644268354734,0.16847033,44225.0,44224.0,0.01947188]
[1644268355731,0.22502033,44225.0,44224.0,0.01947188]
[1644268355933,0.56130599,44225.0,44224.0,0.01947188]
[1644268356331,1.141306,44225.0,44224.0,0.01947188]
[1644268356532,1.141306,44225.0,44222.0,0.0007121]
[1644268356732,0.32717174,44223.0,44218.0,0.06054545]
[1644268356934,0.056556,44221.0,44218.0,0.06054545]
[1644268357135,0.0453,44220.0,44218.0,0.06054545]
[1644268357633,0.36188427,44219.0,44218.0,0.06054545]
[1644268357838,0.55718427,44219.0,44218.0,0.06054545]
[1644268359173,0.77812142,44219.0,44218.0,0.06054545]
[1644268359573,0.50718427,44219.0,44218.0,0.06054545]
[1644268359775,0.0453,44219.0,44218.0,0.06054545]
[1644268359974,0.0953,44219.0,44218.0,0.06054545]
[1644268360172,0.0453,44219.0,44218.0,0.06054545]
[1644268361777,0.0953,44219.0,44218.0,0.06054545]
[1644268362022,0.40784069,44219.0,44218.0,0.06054545]
[1644268362222,0.50784069,44219.0,44218.0,0.06054545]
[1644268362622,0.50171978,44219.0,44218.0,0.06054545]
[1644268362825,0.55171978,44219.0,44218.0,0.06054545]
[1644268364929,0.23917909,44219.0,44218.0,0.06054545]
[1644268365328,0.13917909,44219.0,44218.0,0.06054545]
[1644268368179,0.0453,44219.0,44218.0,0.06054545]
[1644268368576,0.214962,44228.0,44218.0,0.06054545]
[1644268368780,0.01827279,44228.0,44218.0,0.06076983]
[1644268369176,0.01827279,44228.0,44222.0,0.21071732]
[1644268370226,0.01827279,44228.0,44223.0,0.00071225]
[1644268370428,0.056542,44226.0,44223.0,0.00071225]
[1644268371231,0.056542,44226.0,44222.0,0.21071732]
[1644268371631,0.056542,44226.0,44222.0,0.21142957]
[1644268372231,0.056542,44226.0,44222.0,0.00071225]
[1644268372834,0.056542,44226.0,44222.0,0.00071226]
[1644268373034,0.05642725,44226.0,44224.0,0.04995402]
[1644268373288,0.24933372,44220.0,44219.0,0.32213938]
[1644268373490,0.05,44244.0,44226.0,1.35]
[1644268373491,0.3,44241.0,44226.0,1.35]
[1644268373686,0.2138955,44238.0,44234.0,0.01827214]
[1644268374685,0.056525,44239.0,44234.0,0.01827214]
[1644268375086,0.05,44235.0,44234.0,0.01827214]
[1644268375989,0.05,44235.0,44234.0,0.00827214]
[1644268376387,0.01,44235.0,44234.0,0.00827214]
[1644268377439,0.06,44235.0,44234.0,0.00827214]
[1644268378242,0.213064,44236.0,44234.0,0.00827214]
[1644268378644,0.213064,44236.0,44234.0,0.01]
[1644268379043,0.156532,44236.0,44234.0,0.01]
[1644268379843,0.04405983,44235.0,44234.0,0.01]
[1644268380679,0.04405983,44235.0,44225.0,0.02509261]
[1644268380874,0.056533,44232.0,44225.0,0.02509261]
[1644268381074,0.055533,44232.0,44225.0,0.02509261]
[1644268381474,0.055533,44232.0,44228.0,0.00594017]
[1644268381673,0.055533,44232.0,44228.0,0.2546785]
[1644268381875,0.055533,44232.0,44225.0,0.02509261]
[1644268382076,0.055533,44232.0,44229.0,0.00594017]
[1644268382476,0.055533,44232.0,44226.0,0.00594017]
[1644268383276,0.055533,44232.0,44227.0,0.19955742]
[1644268383880,0.0551611,44232.0,44227.0,0.19955742]
[1644268384522,0.0551611,44232.0,44223.0,0.23378935]
[1644268384722,0.0551611,44232.0,44223.0,0.23356497]
[1644268384921,0.0551611,44232.0,44223.0,0.23378935]
[1644268385525,0.0551611,44232.0,44224.0,0.24795663]
[1644268385726,0.0551611,44232.0,44224.0,0.24818101]
[1644268386534,0.0551611,44232.0,44224.0,0.00022438]
[1644268386727,0.0551611,44232.0,44223.0,0.00594017]
[1644268386728,0.0831748,44227.0,44223.0,0.00594017]
[1644268386929,0.35969914,44226.0,44222.0,0.00022438]
[1644268387128,0.056543,44226.0,44225.0,0.00594017]
[1644268387527,0.056543,44226.0,44224.0,0.00594017]
[1644268387729,0.056543,44226.0,44221.0,0.02717776]
[1644268387929,0.056543,44226.0,44222.0,0.00022438]
[1644268388178,0.07719218,44225.0,44221.0,0.02717776]
[1644268388573,0.07719218,44225.0,44221.0,0.02695338]
[1644268388776,0.07719218,44225.0,44221.0,0.00616455]
[1644268388981,0.23668796,44222.0,44221.0,0.00022438]
[1644268389182,0.23668796,44222.0,44220.0,0.00046755]
[1644268389183,0.47001889,44222.0,44220.0,0.00046755]
[1644268389476,0.68251029,44222.0,44219.0,0.00022438]
[1644268389676,0.26182833,44220.0,44214.0,0.00022438]
[1644268389877,0.1,44220.0,44219.0,0.00066483]
[1644268390279,0.68251029,44222.0,44219.0,0.00066483]
[1644268390476,0.68251029,44222.0,44219.0,0.00088921]
[1644268390676,0.04405983,44220.0,44218.0,0.05143466]
[1644268391077,0.04405983,44219.0,44218.0,0.05143466]
[1644268391277,0.35771054,44221.0,44218.0,0.05143466]
[1644268391476,0.04405983,44219.0,44218.0,0.05143466]
[1644268392323,0.10061383,44219.0,44218.0,0.05143466]
[1644268393625,0.056554,44219.0,44218.0,0.05143466]
[1644268394425,0.10061383,44219.0,44218.0,0.05143466]
[1644268394829,0.056554,44219.0,44218.0,0.05737483]
[1644268395030,0.00065909,44224.0,44218.0,0.05737483]
[1644268395233,0.00065909,44224.0,44223.0,0.00594017]
[1644268395675,0.04405983,44226.0,44223.0,0.00594017]
[1644268395878,0.04471896,44226.0,44223.0,0.00616742]
[1644268396071,0.04471896,44226.0,44225.0,0.00594017]
[1644268396570,0.00065913,44226.0,44225.0,0.00594017]
[1644268396776,0.18102601,44229.0,44225.0,0.00594017]
[1644268397071,0.00065913,44228.0,44225.0,0.00594017]
[1644268397272,0.04405983,44226.0,44225.0,0.00594017]
[1644268397673,0.15654,44227.0,44225.0,0.00594017]
[1644268398271,0.15654,44227.0,44220.0,0.00022725]
[1644268398272,0.04405983,44226.0,44220.0,0.00022725]
[1644268398472,0.04405983,44226.0,44225.0,0.00594017]
[1644268398972,0.10623677,44227.0,44223.0,0.00594017]
[1644268399626,0.04405983,44226.0,44223.0,0.00594017]
[1644268400726,0.04405983,44226.0,44220.0,0.00022725]
[1644268400928,0.10689479,44227.0,44219.0,0.19941203]
[1644268401127,0.15689479,44227.0,44219.0,0.19941203]
[1644268401528,0.15623677,44227.0,44219.0,0.19941203]
[1644268401932,0.056544,44224.0,44219.0,0.19941203]
[1644268402228,0.106544,44224.0,44219.0,0.00616742]
[1644268403175,0.10720202,44224.0,44222.0,0.00594017]
[1644268403572,0.11308672,44229.0,44221.0,0.05]
[1644268403971,0.11308672,44229.0,44222.0,0.05]
[1644268404171,0.11308672,44229.0,44221.0,0.05]
[1644268404373,0.056544,44224.0,44221.0,0.05]
[1644268404575,0.055544,44224.0,44221.0,0.05]
[1644268404973,0.04158929,44224.0,44221.0,0.05]
[1644268409725,0.04158929,44224.0,44221.0,0.05022725]
[1644268412978,0.04120575,44224.0,44221.0,0.05022725]
[1644268413179,0.04120575,44224.0,44221.0,0.04022725]
[1644268415626,0.56620057,44220.0,44219.0,0.00071111]